Cogmind - Beta 9.6 @@@ ROGUE MODE // 2020.06.04 @ 16:28:41 Player: Ether Result: Destroyed by as-02617 with Assembled Blade Performance ------------- Evolutions (0) 0 Regions Visited (2) 400 Robots Destroyed (22) 110 Value Destroyed (546) 546 Prototype IDs (0) 0 Alien Tech Used (0) 0 Bonus (0) 0 TOTAL SCORE: 1056 Bonus ------- None Cogmind --------- Core Integrity 0/250 Matter 300/300 Energy 100/100 System Corruption 0% Temperature Cool (0) Movement Treading (180) Ox1 Location -10/Mines Parts ------- > --- POWER (1) -------- (None) > --- PROPULSION (2) --- Light Treads > --- UTILITY (2) ------ Large Storage Unit Large Storage Unit > --- WEAPON (2) ------- (None) > --- INVENTORY (16) --- Ion Engine Light Ion Engine Aluminum Leg Aluminum Leg Aluminum Leg Aluminum Leg Aluminum Leg Cooling System Structural Scanner Sensor Array Signal Interpreter ECM Suite Light EM Pulse Cannon Light EM Pulse Cannon Grenade Launcher Mining Claw Peak State ------------ > --- POWER ------------ Light Nuclear Core > --- PROPULSION ------- Light Treads Light Treads > --- UTILITY ---------- Large Storage Unit Large Storage Unit > --- WEAPON ----------- Light EM Pulse Cannon Light EM Pulse Cannon > --- INVENTORY -------- Ion Engine Light Ion Engine Aluminum Leg Aluminum Leg Aluminum Leg Aluminum Leg Aluminum Leg Aluminum Leg Aluminum Leg Heat Sink Cooling System Structural Scanner Signal Interpreter Light EM Pulse Cannon Light EM Pulse Cannon Mining Laser [Rating: 12] Favorites ----------- Power Light Nuclear Core Engine Ion Engine Power Core Light Nuclear Core Propulsion Light Treads Treads Light Treads Leg Aluminum Leg Utility Large Storage Unit Storage Large Storage Unit Weapon Light EM Pulse Cannon Energy Gun Medium Laser Energy Cannon Light EM Pulse Cannon Ballistic Gun Light Assault Rifle Build | -11 -10 -10 ------- Run | Scr Mat Min Slots Evolved . | . . . Power . | . . . Propulsion . | . . . Utility . | . . . Weapon . | . . . Parts Attached 22 | 7 14 1 Power 3 | 1 2 . Engine 1 | 1 . . Core 2 | . 2 . Reactor . | . . . Propulsion 8 | 2 5 1 Treads 5 | . 4 1 Leg 3 | 2 1 . Wheel . | . . . Hover . | . . . Flight . | . . . Utility 4 | 2 2 . Device . | . . . Storage 4 | 2 2 . Processor . | . . . Hackware . | . . . Protection . | . . . Artifact . | . . . Weapon 7 | 2 5 . Energy Gun 2 | 1 1 . Energy Cannon 4 | . 4 . Ballistic Gun 1 | 1 . . Ballistic Cannon . | . . . Launcher . | . . . Special Weapon . | . . . Impact Weapon . | . . . Slashing Weapon . | . . . Piercing Weapon . | . . . Special Melee Weapon . | . . . Unidentified Prototypes . | . . . Parts Lost 5 | . 1 4 Power 1 | . . 1 Propulsion 1 | . . 1 Utility . | . . . Weapon 3 | . 1 2 Highest Loss Streak 4 | . 1 4 Average Slot Usage (%) 98 | . 98 97 Engine 5 | . 6 . Core 8 | . 7 12 Treads 27 | . 27 27 Storage 28 | . 28 28 Energy Gun 3 | . 3 . Energy Cannon 19 | . 18 27 Ballistic Gun 4 | . 5 . Naked Turns . | . . . Heaviest Build 45 | 16 45 45 Greatest Support 40 | 20 40 40 Greatest Overweight (x) 1 | . 1 1 Average Overweight (x) . | . . 1 Largest Inventory Capacity 16 | 8 16 16 Average Capacity 15 | 6 15 16 Most Carried 16 | 8 16 16 Average Carried 15 | 5 15 16 Final Capacity 16 | 8 16 16 Final Carried 16 | 8 16 16 Class Distribution -------------------- 100% | Mutant Dominant Class ---------------- Mutant | -10/Materials Mutant | -10/Mines Resources | -11 -10 -10 ----------- Run | Scr Mat Min Matter Collected 446 | 270 176 . Remotely . | . . . Salvage Created 832 | 130 682 20 Parts 52 | 13 39 . Haulers Intercepted . | . . . Recyclers Shooed 2 | 1 1 . Parts Field Recycled . | . . . Retrieved Matter . | . . . Parts Self-Destructed . | . . . Prevented . | . . . Kills | -11 -10 -10 ------- Run | Scr Mat Min Combat Hostiles Destroyed 15 | . 14 1 Guns 6 | . 6 . Cannons 9 | . 8 1 Classes Destroyed 6 | 3 2 1 Worker 2 | 2 . . Tunneler 2 | 2 . . Recycler 2 | 1 1 . Watcher 1 | . 1 . Grunt 14 | . 14 . Assembled 1 | . . 1 Best Kill Streak 4 | 3 4 1 Combat Bots Only 3 | . 3 1 Max Kills in Single Turn 1 | 1 1 1 Gunslinging . | . . . Exploded . | . . . Melee . | . . . Uniques/NPCs Destroyed . | . . . Combat | -11 -10 -10 -------- Run | Scr Mat Min Damage Taken 810 | . 482 328 Core 252 | . 115 137 Absorbed by Shields . | . . . Core Remaining (%) 100 | 100 . . Volleys Fired 65 | 15 47 3 Largest 2 | 1 2 2 Hottest 112 | 50 112 112 Shots Fired 107 | 15 86 6 Gun 73 | 15 58 . Cannon 34 | . 28 6 Launcher . | . . . Special . | . . . Kinetic 36 | . 36 . Thermal 45 | 15 30 . Explosive . | . . . Electromagnetic 26 | . 20 6 Robot Hit Streak 11 | 6 11 4 Robot Miss Streak 3 | 2 3 1 Penetration Max . | . . . Secondary Targets . | . . . Shots Hit Robots 74 | 11 59 4 Core Hits 35 | 6 27 2 Critical Hits . | . . . Critical Kills . | . . . Critical Parts Destroyed . | . . . Melee Attacks . | . . . Impact . | . . . Slashing . | . . . Piercing . | . . . Sneak Attacks . | . . . Combat Hostiles . | . . . Follow-up Attacks . | . . . Damage Inflicted 880 | 136 685 59 Guns 477 | 136 341 . Cannons 403 | . 344 59 Explosions . | . . . Melee . | . . . Ramming . | . . . Kinetic 140 | . 140 . Thermal 423 | 136 287 . Explosive . | . . . Electromagnetic 317 | . 258 59 Impact . | . . . Slashing . | . . . Piercing . | . . . Highest Corruption . | . . . Average Corruption . | . . . Corruption Purged . | . . . Overload Shots . | . . . Overflow Damage . | . . . Projectiles . | . . . Explosions . | . . . Melee . | . . . Knockbacks . | . . . Impact . | . . . Kinetic . | . . . Secondary . | . . . Self-Inflicted Damage . | . . . Shots . | . . . Rammed . | . . . Targets Rammed . | . . . Kicked . | . . . Crushed . | . . . Highest Temperature 242 | 90 242 191 Average Temperature 83 | 40 91 98 Received Heat Transfer 293 | . 273 20 Siege Activations . | . . . Robots Corrupted . | . . . Combat Hostiles . | . . . Parts Fried . | . . . Impact Corruptions . | . . . Robots Melted . | . . . Combat Hostiles . | . . . Parts Melted 2 | . 2 . Heat Transferred 1184 | 407 777 . Parts Sabotaged . | . . . Parts Stolen . | . . . Parts Stripped . | . . . Power Chain Reactions . | . . . Missiles Intercepted . | . . . Alert | -11 -10 -10 ------- Run | Scr Mat Min Peak Influence 222 | 25 222 . Average Influence 55 | 10 66 . Maximum Alert Level 1 | . 1 . Low Security (%) 96 | 100 95 100 Level 1 3 | . 4 . Level 2 . | . . . Level 3 . | . . . Level 4 . | . . . Level 5 . | . . . High Security . | . . . Max Security . | . . . Squads Dispatched 4 | . 4 . Investigation 2 | . 2 . Extermination . | . . . Reinforcement 2 | . 2 . Assault . | . . . Garrison . | . . . Intercept . | . . . Construction Impeded . | . . . Haulers Reinforced . | . . . Stealth | -11 -10 -10 --------- Run | Scr Mat Min Distress Signals . | . . . Communications Jammed . | . . . Distress Signals . | . . . Times Spotted 26 | . 21 5 Peak Tracking Total 6 | . 3 6 Tactical Retreats 1 | . . 1 Traps | -11 -10 -10 ------- Run | Scr Mat Min Traps Triggered 2 | . 2 . Indirectly . | . . . Trap Hack Attempts . | . . . Triggered . | . . . Disarmed . | . . . Reprogrammed . | . . . Reused . | . . . Traps Extracted . | . . . Installed . | . . . Triggered . | . . . Machines | -11 -10 -10 ---------- Run | Scr Mat Min Machines Disabled . | . . . Max in Single Turn . | . . . Machines Sabotaged . | . . . Garrisons Compromised . | . . . Overloaded Fab Kills . | . . . Fab Network Shutdowns . | . . . Hacking | -11 -10 -10 --------- Run | Scr Mat Min Machines Accessed 9 | . 9 . Terminals 6 | . 6 . Fabricators . | . . . Repair Stations 1 | . 1 . Recycling Units 2 | . 2 . Scanalyzers . | . . . Garrison Access . | . . . Total Hacks 29 | . 29 . Successful 21 | . 21 . Failed 8 | . 8 . Catastrophic 5 | . 5 . Database Lockouts . | . . . Manual 8 | . 8 . Terminals 18 | . 18 . Fabricators . | . . . Repair Stations 6 | . 6 . Recycling Units 5 | . 5 . Scanalyzers . | . . . Garrison Access . | . . . Terminal Hacks 10 | . 10 . Level Access Points 1 | . 1 . Emergency Access Points 2 | . 2 . Alert Level 1 | . 1 . Locate Traps 1 | . 1 . Maintenance Status 1 | . 1 . Transport Status 1 | . 1 . Hauler Manifests 2 | . 2 . Zone Layout 1 | . 1 . Fabricator Hacks . | . . . Repair Station Hacks 6 | . 6 . Scan Component 3 | . 3 . Repair 3 | . 3 . Recycling Unit Hacks 5 | . 5 . Recycle Component 1 | . 1 . Process 2 | . 2 . Report Inventory 1 | . 1 . Retrieve Components 1 | . 1 . Scanalyzer . | . . . Garrison Access Hacks . | . . . Unauthorized Hacks . | . . . Terminals . | . . . Fabricators . | . . . Repair Stations . | . . . Recycling Units . | . . . Scanalyzers . | . . . Garrison Access . | . . . Data Cores Recovered . | . . . Used . | . . . Hacking Detections 8 | . 8 . Full Trace Events 1 | . 1 . Feedback Events . | . . . Feedback Blocked . | . . . Robot Schematics Acquired . | . . . Robots Built . | . . . Matter . | . . . Time . | . . . Total Robot Build Rating . | . . . Part Schematics Acquired . | . . . Parts Built . | . . . Matter . | . . . Time . | . . . Total Part Build Rating . | . . . Parts Repaired 3 | . 3 . Time 96 | . 96 . Parts Recycled 1 | . 1 . Recycled Matter 125 | . 125 . Retrieved Matter . | . . . Retrieved Components 10 | . 10 . Parts Scanalyzed . | . . . Part Schematics Acquired . | . . . Parts Damaged . | . . . Bothacking | -11 -10 -10 ------------ Run | Scr Mat Min Used RIF Installer . | . . . Robots Hacked . | . . . Non-combat . | . . . Combat . | . . . Robot Hacks Applied . | . . . Relay Couplers Released . | . . . Robots Rewired . | . . . Allies Hacked . | . . . Hacks Repelled . | . . . Allies | -11 -10 -10 -------- Run | Scr Mat Min Total Allies . | . . . Largest Group . | . . . Highest-Rated Group . | . . . Highest-Rated Ally . | . . . Total Orders . | . . . Ally Attacks . | . . . Total Damage . | . . . Kills . | . . . Allies Corrupted . | . . . Allies Melted . | . . . Intel | -11 -10 -10 ------- Run | Scr Mat Min Robot Analysis Total . | . . . Derelict Logs Recovered 1 | . . 1 Drone Launches . | . . . Drone Recoveries . | . . . Exploration | -11 -10 -10 ------------- Run | Scr Mat Min Turns Passed 2740 | 171 2232 337 Spaces Moved 1380 | 104 1097 179 Core 7 | 7 . . Treads 1270 | . 1091 179 Legs 103 | 97 6 . Wheels . | . . . Hover . | . . . Flight . | . . . Fastest Speed 50 | 50 120 180 Average Speed 169 | 115 172 180 Slowest Speed 180 | 120 180 180 Overloaded Moves . | . . . Propulsion Burnouts . | . . . Robots Hopped . | . . . Cave-ins Triggered . | . . . Exploration Rate (%) 52 | 4 99 53 Regions Visited 2 Branch Regions 1 Pre-discovered Areas 1 | . . 1 Known Exits Taken . | . . . Unknown Exits Taken 2 | 1 1 . Scrap Searched 2 | . . 2 Spaces Dug . | . . . Terrain Destroyed . | . . . Melee . | . . . Projectile . | . . . AOE . | . . . Actions | -11 -10 -10 --------- Run | Scr Mat Min Total 1685 | 138 1359 188 Wait 151 | . 149 2 Move 1378 | 103 1096 179 Hop . | . . . Pick Up 41 | 11 30 . Fast Attach 12 | 6 5 1 Attach 2 | 1 1 . Detach . | . . . Swap 8 | . 8 . Drop 26 | 2 23 1 Fire 65 | 15 47 3 Melee . | . . . Ram . | . . . Kick . | . . . Crush . | . . . Escape Stasis . | . . . Rewire 2 | . . 2 Trap . | . . . Miscellaneous . | . . . Route ------- -11/Scrapyard -10/Materials (discovered 4 exits: *Mat x3 / [*Min]) -10/Mines History --------- Turn | Location | Event 13 | -11/Scrapyard | Discovered new exit (range 16) 172 | -11/Scrapyard | Entered Materials 301 | -10/Materials | Build established: Mutant 514 | -10/Materials | Repaired Imp. Terrain Scanner 638 | -10/Materials | Identified exit to Materials 1658 | -10/Materials | Discovered new exit (range 14) 2225 | -10/Materials | Repaired Sensor Array 2264 | -10/Materials | Repaired Lgt. Nuclear Core 2404 | -10/Materials | Entered Mines 2448 | -10/Mines | Learned location of Storage (-9) 2676 | -10/Mines | Assembled infested the area 2681 | -10/Mines | Assisted by a Guerilla fighting off Assembled 2713 | -10/Mines | Core integrity fell below 50% 2735 | -10/Mines | Core integrity fell below 20% 2741 | -10/Mines | Destroyed by as-02617 with Assembled Blade Last Messages --------------- 02523_ A derelict is hurriedly installing traps. 02525_ 6I-EYV(g): "Hehe, this'll put a wrench in their mining defense operations..." 02525_ 6I-EYV(g) slips into the shadows. 02650_ K-01 Serf collects debris. 02676_ ALERT: Infestation in the mines, dispatching Demolisher response squad. 02681_ A derelict emerges from the shadows: "You need to get out of here! I've been tracking a group of Assembled to figure out where they're coming from, and they're closing on this area, come on!" 02681_ K-01 Serf collects debris. 02693_ H1-D50(h): "I'll hold them off! Go on ahead or try to find another way!" 02713_ as-72202 destroyed. 02719_ Lgt. Nuclear Core destroyed. 02720_ Dropped Lgt. Treads. 02720_ Acquired Lgt. Treads. 02722_ K-01 Serf collects debris. 02722_ Lgt. Treads destroyed. 02730_ Lgt. EM Pulse Cannon destroyed. Map ----- +----------------------------------------------------+ | ???# ## #?????????????????????# #????????? | | ???# ## #?????????????????????# #????????? | | ???## ## #?????????????????????# #??####??? | | ????### ## ######????????????????# #??# ??? | | ??????## # #????????????????# #??# #??? | | ???????# ##### #???????????# #### ##?# #??? | | ???????# ##???# #????????????? #?# #??? | | ??????## ###????# ##????? ????????# ### ##?? | | ?????## ##????## ###?? ????????# * ## ### | | ????## ##???# ############## | | ????# #??? # =%* | | ????## ##### !%| ! #### | | ?????## =%############## * ##??? | | ??????# ##????????????# ####???? | | ??????## ##### ??????????????# #??????# | | ???????####???# ????????????????# #?##### | | ??????????????## #?????????????????# ### | | ?????????####### #??????????????????# ## | | ?????????# % #??????????????????# /## | | ?????????# ##### #??????????????????#[% #?? | | ???????????????# ###????????????????#### ##?? | | ???????????????# #???????????????????# #### | | ???????????????#### ########????????????## ## | | ??????????????????# #????????????## | | ??????????????????#######a #????????????# | | ????????????????????????#@ #??????# | | ????????????????????????# #??????# | | ????????????????????????# #??????## | | ????????????????????????# #???????#### | | ????????????????????????# #??????????## | | ????????????????????????# #???????????# | | ???????????????????????? #???????????# | | ???????????????????????? ???????????## | | ???????????????????????? ????????????##### | | ???????????????????????? #????????????????## | | ????????????????????????####?????????????????# | | ?????????????????????????????????????????????# | | ????????????????????????????????????????????? | | ????????????????????????????????????????????? | | ?????????????????????????????????????????????? | | ?????????????????????????????????????????????????? | | ?????????????????????????????????????????????????? | | ?????????????????????????????????????????????????? | | ?????????????????????????????????????????????????? | | ?????????????????????????????????????????????????? | | ?????????????????????????????????????????????????? | | ?????????????????????????????????????????????????? | | ?????????????????????????????????????????????????? | | ?????????????????????????????????????????????????? | | | +----------------------------------------------------+ Best States ------------- Heat Dissipation 25 Energy Generation 14 Energy Capacity 250 Matter Stores 300 Matter Capacity 300 Sight Range 16 Terrain Scan Density 10 Evasion (%) 40 Recoil Reduction 2 Item Schematics ----------------- None Robot Schematics ------------------ None Fabricated ------------ Nothing Alien Tech Used ----------------- None Achievements -------------- None Challenges ------------ None Game ------ Seed HeavyBarrageMatrix Manual? 0 Play Time 00:26:31 Cumulative 12.0 hours Start 2020.06.04 @ 16:04:27 End 2020.06.04 @ 16:28:41 Sessions 1 Manual Loads 0 Difficulty Rogue Special Mode None Game No. 33 Rogue 33 Adventurer 0 Explorer 0 Win Type - Total 0 Types 0/0/0/0/0/0/0 Lore% 17 Gallery% 22 Achievement% 14 Wizard Run 0 Options --------- ASCII 0 Keyboard 0 Movement Numpad Keybinds 0 Fullscreen 1 Font 18/SmallcapsGlow Map View 76x50 Tactical HUD 1 Map Filters NONE Filters NONE Steam 1 RUN: 61d1de29-0a83-4a6d-ac2a-55d8ff4f820d